bitfinex/quotes_SOLUSD_20220227
["timestamp","ask_amount","ask_price","bid_price","bid_amount"]
[1645966650262,7.10278921,91.868,91.781,24.0846]
[1645966650657,2.74678921,91.867,91.781,24.0846]
[1645966650958,2.11800023,91.869,91.781,24.0846]
[1645966651359,4.86478944,91.869,91.781,24.0846]
[1645966651657,1.71649248,91.859,91.781,24.0846]
[1645966653157,16.3487,91.86,91.781,24.0846]
[1645966654360,25.1008,91.859,91.781,24.0846]
[1645966654959,6.0,91.858,91.781,24.0846]
[1645966655960,6.0,91.858,91.781,132.9846]
[1645966656160,24.0404,91.885,91.782,2.68217924]
[1645966657161,16.3459,91.87,91.781,24.0846]
[1645966657862,16.3459,91.87,91.782,3.03979004]
[1645966658262,0.25,91.869,91.782,3.03979004]
[1645966659067,0.25,91.869,91.781,24.0846]
[1645966659867,6.25,91.869,91.781,24.0846]
[1645966660069,7.93859187,91.869,91.781,24.0846]
[1645966660271,16.3478,91.86,91.781,24.0846]
[1645966660477,1.5227028,91.859,91.781,24.0846]
[1645966660676,1.5227028,91.859,91.761,2.33835608]
[1645966660677,28.58469201,91.859,91.761,2.33835608]
[1645966660971,1.46104368,91.858,91.762,29.9002]
[1645966661175,1.46104368,91.858,91.762,32.64698921]
[1645966661373,1.46104368,91.858,91.763,2.74678921]
[1645966661571,16.3508,91.85,91.764,6.0]
[1645966662172,16.3508,91.85,91.765,2.74678921]
[1645966662371,16.3508,91.85,91.766,6.0]
[1645966662772,16.3508,91.85,91.767,2.74678921]
[1645966662975,0.25,91.849,91.768,6.0]
[1645966663573,6.0,91.858,91.768,6.0]
[1645966663772,0.25,91.857,91.768,6.0]
[1645966664574,0.25,91.857,91.768,8.74678921]
[1645966665176,0.25,91.857,91.769,108.9]
[1645966665376,0.25,91.857,91.771,108.9]
[1645966665580,0.25,91.857,91.772,9.3192447]
[1645966665779,0.25,91.857,91.773,22.8042]
[1645966665780,0.2203012,91.857,91.773,22.8042]
[1645966666080,0.2203012,91.857,91.774,9.01611919]
[1645966666281,0.2203012,91.857,91.774,6.25]
[1645966666479,0.2203012,91.857,91.774,8.99678921]
[1645966666800,0.2203012,91.857,91.774,8.74678921]
[1645966667400,0.2203012,91.857,91.775,0.25]
[1645966667699,0.2203012,91.857,91.776,3.06898161]
[1645966667899,0.2203012,91.857,91.779,2.38233215]
[1645966668901,6.0,91.858,91.78,16.5933]
[1645966669101,4.356,91.914,91.782,108.9]
[1645966669302,4.356,91.914,91.785,2.9767269]
[1645966669502,2.74678921,91.93,91.789,108.9]
[1645966669701,4.354,91.929,91.792,2.84028795]
[1645966669902,2.74678921,91.914,91.793,6.25]
[1645966670102,2.74678921,91.928,91.794,108.9]
[1645966670301,0.25,91.927,91.797,2.55533681]
[1645966670501,0.25,91.927,91.8,2.35270679]
[1645966670704,0.25,91.927,91.803,2.52726024]
[1645966670903,0.25,91.927,91.802,108.9]
[1645966670904,0.25,91.927,91.811,111.16825392]
[1645966671102,6.25,91.927,91.812,3.03984]
[1645966671305,6.25,91.927,91.815,2.3894738]
[1645966671503,30.92,91.927,91.817,108.9]
[1645966671702,30.92,91.927,91.818,2.25422442]
[1645966671904,30.92,91.927,91.821,2.63104941]
[1645966672105,30.92,91.927,91.823,3.01576498]
[1645966672504,32.64238094,91.927,91.823,3.01576498]
[1645966672705,4.34572559,91.926,91.824,22.9211]
[1645966672904,4.34572559,91.926,91.825,108.9]
[1645966673104,4.34572559,91.926,91.826,2.63554119]
[1645966673508,2.74678921,91.925,91.826,2.63554119]
[1645966673906,2.74678921,91.925,91.824,22.9211]
[1645966673907,16.3375,91.92,91.824,22.9211]
[1645966674106,110.71585511,91.919,91.824,22.9211]
[1645966674306,108.9,91.917,91.824,22.9211]
[1645966674508,108.9,91.917,91.822,22.7436]
[1645966674509,108.9,91.915,91.822,22.7436]
[1645966674709,2.02300752,91.914,91.822,22.7436]
[1645966674908,4.354,91.913,91.822,22.7436]
[1645966675109,108.9,91.912,91.822,22.7436]
[1645966675310,5.96610992,91.911,91.822,22.7436]
[1645966675509,16.3435,91.9,91.822,22.7436]
[1645966675710,23.4344,91.899,91.822,22.7436]
[1645966675910,1.76876745,91.898,91.822,22.7436]
[1645966676419,6.0,91.897,91.822,22.7436]
[1645966677115,16.3426,91.89,91.822,22.7436]
[1645966677515,1.64117012,91.889,91.822,22.7436]
[1645966677916,0.25,91.888,91.822,22.7436]
[1645966678116,2.74678921,91.89,91.822,22.7436]
[1645966678317,16.3443,91.88,91.786,22.5313]
[1645966678517,1.53829023,91.878,91.787,22.9446]
[1645966679117,7.10178921,91.877,91.787,22.9446]
[1645966679318,7.10178921,91.877,91.788,37.40260436]
[1645966679518,16.347,91.87,91.788,37.40260436]
[1645966679818,22.7336,91.879,91.788,37.40260436]
[1645966680018,22.7336,91.879,91.789,2.82457368]
[1645966680218,6.0,91.878,91.789,2.82457368]
[1645966680617,6.0,91.878,91.789,5.57136289]
[1645966681018,7.38576171,91.878,91.789,2.74678921]
[1645966681818,7.38576171,91.878,91.788,37.40260436]
[1645966682019,0.25,91.877,91.788,37.40260436]
[1645966682619,1.77418017,91.869,91.788,37.40260436]
[1645966683020,16.3462,91.87,91.788,37.40260436]
[1645966683223,4.355,91.899,91.79,3.00493769]
[1645966683423,6.0,91.898,91.793,2.88163049]
[1645966683621,6.0,91.898,91.796,2.68346804]
[1645966683824,6.0,91.898,91.797,0.25]
[1645966684023,23.3877,91.909,91.797,6.25]
[1645966684222,16.3409,91.9,91.8,16.3398]
[1645966684422,1.43206144,91.899,91.8,16.3398]
[1645966684621,4.354,91.908,91.798,25.27878921]
[1645966684822,2.74678921,91.899,91.798,22.532]
[1645966685022,4.354,91.898,91.798,22.532]
[1645966685424,24.5368,91.897,91.798,22.532]
[1645966685622,16.3428,91.89,91.798,22.532]
[1645966685823,1.776832,91.889,91.798,22.532]
[1645966686823,0.25,91.888,91.798,22.532]
[1645966687025,6.25,91.888,91.798,22.532]
[1645966690229,2.74678921,91.887,91.798,22.532]
[1645966690426,24.9912,91.886,91.798,22.532]
[1645966690627,1.43372196,91.885,91.798,22.532]
[1645966690827,4.18051117,91.885,91.798,22.532]
[1645966691228,1.43372196,91.885,91.798,22.532]
[1645966693236,16.3446,91.88,91.798,22.532]
[1645966693435,1.60393819,91.879,91.798,22.532]
[1645966693934,6.25,91.878,91.798,22.532]
[1645966695238,0.25,91.878,91.799,108.9]
[1645966695434,16.3446,91.88,91.799,16.06926819]
[1645966696737,110.59469611,91.879,91.785,16.06926819]
[1645966696935,16.3499,91.86,91.782,2.74678921]
[1645966697135,1.47432061,91.859,91.761,24.0498]
[1645966697535,6.0,91.858,91.773,39.61149709]
[1645966697736,0.25,91.857,91.774,24.3781]
[1645966697936,2.99678921,91.857,91.774,24.3781]
[1645966698336,111.64678921,91.856,91.757,2.74678921]
[1645966698537,1.56010186,91.848,91.716,2.40354652]
[1645966698739,4.358,91.847,91.717,18.54742597]
[1645966698938,4.11713937,91.855,91.726,13.22308806]
[1645966699139,4.11713937,91.855,91.728,2.40006409]
[1645966699343,2.74678921,91.854,91.728,2.40006409]
[1645966699540,4.357,91.853,91.728,111.30006409]
[1645966699741,4.357,91.853,91.727,42.22812597]
[1645966699742,1.64023298,91.839,91.731,2.64662514]
[1645966699940,1.62973568,91.837,91.732,6.0]
[1645966700140,1.62973568,91.837,91.733,2.33223005]
[1645966700340,1.62973568,91.837,91.735,108.9]
[1645966700560,47.2065,91.838,91.737,108.9]
[1645966700766,47.2065,91.838,91.738,2.78990986]
[1645966700965,47.2065,91.838,91.739,108.9]
[1645966701166,47.2065,91.838,91.741,108.9]
[1645966701366,47.2065,91.838,91.742,2.95144544]
[1645966701563,16.3536,91.83,91.742,2.95144544]
[1645966701970,78.3318,91.87,91.743,109.15]
[1645966702172,1.62013865,91.893,91.746,44.80016864]
[1645966702365,48.3676,91.892,91.747,115.15]
[1645966702567,48.3676,91.892,91.748,2.44561196]
[1645966702766,48.3676,91.892,91.751,2.47497144]
[1645966702966,48.3676,91.892,91.754,2.51478508]
[1645966703165,48.3676,91.892,91.757,2.46998342]
[1645966703367,48.3676,91.892,91.756,108.9]
[1645966703368,6.0,91.891,91.791,146.06625509]
[1645966703665,2.74678921,91.918,91.794,2.30982149]
[1645966703867,2.74678921,91.918,91.796,108.9]
[1645966703868,6.0,91.917,91.796,108.9]
[1645966704069,6.0,91.917,91.799,2.64913482]
[1645966704269,6.0,91.917,91.801,108.9]
[1645966704570,6.0,91.916,91.804,2.27390909]
[1645966704766,6.0,91.916,91.802,6.25]
[1645966704767,4.354,91.942,91.807,2.27087009]
[1645966704968,16.3351,91.93,91.821,108.9]
[1645966705167,6.0790246,91.929,91.823,46.99543366]
[1645966705366,0.25,91.928,91.824,0.25]
[1645966705568,2.74678921,91.929,91.824,0.25]
[1645966705771,2.74678921,91.928,91.824,2.97311856]
[1645966706470,16.3369,91.92,91.824,2.97311856]
[1645966706872,1.61024708,91.919,91.824,0.25]
[1645966707072,4.35703629,91.919,91.824,0.25]
[1645966707270,2.74678921,91.918,91.824,0.25]
[1645966707769,0.25,91.917,91.824,0.25]
[1645966708571,6.25,91.917,91.824,0.25]
[1645966708971,0.25,91.917,91.823,43.89640531]
[1645966709174,6.0,91.918,91.823,43.89640531]
[1645966709577,22.5037,91.917,91.823,43.89640531]
[1645966709774,1.84682214,91.916,91.823,43.89640531]
[1645966710975,0.25,91.915,91.823,43.89640531]
[1645966711776,0.25,91.915,91.824,2.57337359]
[1645966711978,6.25,91.916,91.824,2.57337359]
[1645966712378,8.03917971,91.916,91.823,43.89640531]
[1645966712577,16.3386,91.91,91.823,43.89640531]
[1645966713879,16.3386,91.91,91.824,0.25]
[1645966714380,16.3386,91.91,91.824,2.81596416]
[1645966715281,16.3386,91.91,91.824,109.15]
[1645966715582,16.3386,91.91,91.825,2.64145259]
[1645966715883,16.3386,91.91,91.826,0.25]
[1645966716080,16.3358,91.93,91.826,0.25]
[1645966716283,0.25,91.929,91.825,2.64145259]
[1645966716481,4.353,91.928,91.824,108.9]
[1645966716684,7.09978921,91.928,91.824,108.9]
[1645966717082,2.74678921,91.927,91.824,108.9]
[1645966717582,16.3379,91.92,91.824,108.9]
[1645966717783,1.84043628,91.919,91.824,108.9]
[1645966717982,4.58722549,91.919,91.824,108.9]
[1645966718184,1.56388845,91.917,91.824,108.9]
[1645966718886,16.3387,91.91,91.824,108.9]
[1645966719082,16.3387,91.91,91.825,2.95927004]
[1645966719885,0.25,91.909,91.825,2.95927004]
[1645966720286,0.25,91.909,91.826,0.25]
[1645966720888,16.3387,91.91,91.826,0.25]
[1645966721085,16.3387,91.91,91.825,2.95927004]
[1645966721287,1.81867227,91.909,91.823,43.89640531]
[1645966721485,16.3419,91.89,91.823,43.89640531]
[1645966722491,1.81867227,91.909,91.823,43.89640531]
[1645966722689,6.0,91.908,91.823,43.89640531]
[1645966723387,24.308,91.907,91.823,43.89640531]
[1645966723589,1.46933248,91.906,91.823,43.89640531]
[1645966723888,0.25,91.905,91.823,43.89640531]
[1645966724489,0.25,91.905,91.824,2.99678921]
[1645966724689,24.308,91.907,91.824,111.89678921]
[1645966724891,24.308,91.907,91.825,5.62955651]
[1645966725095,24.308,91.907,91.826,108.9]
[1645966725293,24.308,91.907,91.827,0.25]
[1645966725490,24.308,91.907,91.826,2.74678921]
[1645966725696,1.789243,91.906,91.823,43.89640531]
[1645966726091,24.308,91.907,91.825,2.4046657]
[1645966726295,0.25,91.906,91.826,0.25]
[1645966726491,0.25,91.906,91.826,2.99678921]
[1645966726812,0.25,91.906,91.827,2.74678921]
[1645966726991,6.25,91.906,91.827,2.74678921]
[1645966727594,6.25,91.906,91.823,43.89640531]
[1645966728393,7.83433154,91.906,91.823,43.89640531]
[1645966729493,4.354,91.905,91.814,2.74678921]
[1645966729693,4.354,91.905,91.771,23.7001]
[1645966729694,108.9,91.899,91.771,23.7001]
[1645966729893,108.9,91.897,91.771,23.7001]
[1645966730096,4.355,91.898,91.771,23.7001]
[1645966730097,6.08954374,91.896,91.771,23.7001]
[1645966730293,6.08954374,91.896,91.771,132.6001]
[1645966730294,5.71422318,91.895,91.771,132.6001]
[1645966730496,4.355,91.894,91.772,43.19799387]
[1645966730693,6.18515442,91.894,91.772,43.19799387]
[1645966730896,48.13835777,91.893,91.772,43.19799387]
[1645966731098,6.01551622,91.892,91.772,43.19799387]
[1645966731299,58.272966,91.892,91.772,43.19799387]
[1645966731496,16.3493,91.88,91.772,43.19799387]
[1645966731693,28.42277429,91.879,91.772,43.19799387]
[1645966731898,1.453403,91.878,91.772,43.19799387]
[1645966732095,4.356,91.877,91.772,43.19799387]
[1645966732298,29.3537,91.877,91.772,45.68759716]
[1645966732497,24.9977,91.877,91.772,45.68759716]
[1645966732699,1.40221172,91.876,91.772,45.68759716]
[1645966732898,1.40221172,91.876,91.773,23.0069]
[1645966733499,16.3492,91.86,91.773,23.0069]
[1645966733901,1.61581711,91.859,91.773,23.0069]
[1645966734099,4.36260632,91.859,91.771,23.7001]
[1645966734321,4.38357487,91.858,91.771,23.7001]
[1645966734520,4.606,91.857,91.771,23.7001]
[1645966734719,7.35278921,91.857,91.771,23.7001]
[1645966734920,2.74678921,91.856,91.771,23.7001]
[1645966735119,1.45751163,91.849,91.742,23.4367]
[1645966735325,4.357,91.848,91.743,24.9434]
[1645966735519,1.50541211,91.846,91.743,24.9434]
[1645966735722,4.357,91.845,91.743,24.9434]
[1645966735919,52.7372,91.845,91.743,24.9434]
[1645966736119,52.7372,91.845,91.744,41.38083612]
[1645966736120,4.26356439,91.844,91.744,41.38083612]
[1645966736323,6.22580263,91.843,91.744,41.38083612]
[1645966736520,16.356,91.84,91.744,41.38083612]
[1645966736718,5.9086394,91.839,91.744,41.38083612]
[1645966736920,6.0,91.838,91.744,41.38083612]
[1645966737120,113.257,91.837,91.744,41.38083612]
[1645966737321,25.19050262,91.837,91.744,41.38083612]
[1645966737521,20.73353134,91.836,91.744,41.38083612]
[1645966737720,6.01579014,91.835,91.744,41.38083612]
[1645966737924,25.2699105,91.835,91.744,41.38083612]
[1645966738122,20.96741515,91.834,91.744,41.38083612]
[1645966738322,1.57379381,91.832,91.744,41.38083612]
[1645966738522,54.521,91.83,91.744,41.38083612]
[1645966738725,4.357,91.829,91.743,24.9434]
[1645966738923,5.88308214,91.829,91.743,24.9434]
[1645966739424,8.62987135,91.829,91.743,24.9434]
[1645966739625,8.62987135,91.829,91.744,38.07908246]
[1645966740824,22.9519,91.833,91.745,108.9]
[1645966741026,22.9519,91.833,91.746,3.08989892]
[1645966742224,16.353,91.83,91.745,108.9]
[1645966742824,6.0,91.829,91.745,108.9]
[1645966743024,0.25,91.828,91.745,108.9]
[1645966743227,0.25,91.828,91.745,56.9968]
[1645966743426,0.25,91.828,91.744,54.56978246]
[1645966744424,0.25,91.828,91.745,108.9]
[1645966744624,6.0,91.829,91.745,108.9]
[1645966744625,6.0,91.829,91.746,3.08747444]
[1645966744826,22.9519,91.833,91.747,0.25]
[1645966745227,1.39435238,91.856,91.747,0.25]
[1645966745426,24.3199,91.844,91.747,0.25]
[1645966745626,1.73861324,91.843,91.745,108.9]
[1645966745829,1.73861324,91.843,91.746,0.25]
[1645966746026,1.73861324,91.843,91.745,108.9]
[1645966746429,1.73861324,91.843,91.746,0.25]
[1645966746629,1.68742125,91.839,91.751,108.9]
[1645966747030,0.25,91.838,91.751,108.9]
[1645966747231,2.99678921,91.838,91.751,108.9]
[1645966747432,2.74678921,91.837,91.751,108.9]
[1645966747731,2.74678921,91.837,91.745,108.9]
[1645966748531,6.0,91.836,91.745,108.9]
[1645966749132,16.3527,91.83,91.745,108.9]
[1645966749531,6.0,91.836,91.745,108.9]
[1645966749532,2.74678921,91.829,91.746,2.956688]
[1645966749732,6.0,91.836,91.751,108.9]
[1645966749934,6.0,91.836,91.754,2.78713866]
[1645966750132,6.0,91.836,91.756,108.9]
[1645966750333,1.85844628,91.86,91.758,108.9]
[1645966750534,16.3499,91.85,91.76,108.9]
[1645966750735,6.0,91.843,91.761,117.43915504]
[1645966750935,6.0,91.843,91.763,108.9]
[1645966751935,0.25,91.842,91.763,108.9]
[1645966752135,0.25,91.842,91.761,2.53915504]
[1645966752335,0.25,91.842,91.762,6.0]
[1645966752537,0.25,91.842,91.763,108.9]
[1645966752734,0.25,91.842,91.764,2.32190492]
[1645966752936,0.25,91.849,91.765,0.25]
[1645966753236,23.9187,91.869,91.767,3.06465791]
[1645966753438,0.25,91.868,91.767,3.06465791]
[1645966753837,26.33824566,91.868,91.769,108.9]
[1645966754037,26.33824566,91.868,91.77,3.06362081]
[1645966754437,16.3473,91.86,91.772,153.35155051]
[1645966756337,6.0,91.859,91.772,153.35155051]
[1645966757338,5.80277164,91.859,91.772,153.35155051]
[1645966758938,0.25,91.858,91.772,153.35155051]
[1645966760340,0.25,91.858,91.773,3.12170175]
[1645966762844,0.25,91.858,91.774,6.0]
[1645966763045,0.25,91.858,91.776,2.33119476]
[1645966763246,0.25,91.858,91.778,108.9]
[1645966763444,0.25,91.858,91.78,108.9]
[1645966763645,0.25,91.858,91.782,108.9]
[1645966765247,23.4088,91.868,91.783,2.87051749]
[1645966766448,16.3441,91.88,91.785,108.9]
[1645966766649,4.356,91.894,91.791,108.9]
[1645966766848,6.0,91.868,91.794,2.63720044]
[1645966767049,24.6926,91.895,91.796,108.9]
[1645966767248,2.74678921,91.906,91.798,108.9]
[1645966767450,1.673101,91.925,91.801,35.82120808]
[1645966767649,26.08824566,91.927,91.801,35.82120808]
[1645966767650,26.08824566,91.927,91.802,119.504]
[1645966767849,24.6926,91.926,91.803,2.68977891]
[1645966768049,24.6926,91.926,91.805,108.9]
[1645966768249,24.6926,91.926,91.807,108.9]
[1645966768449,24.6926,91.926,91.802,29.037]
[1645966768450,0.25,91.896,91.82,16.3363]
[1645966768649,6.25,91.896,91.821,133.998]
[1645966769251,6.25,91.896,91.821,25.098]
[1645966769749,6.0,91.896,91.821,25.098]
[1645966770850,6.0,91.896,91.822,108.9]
[1645966771051,6.0,91.896,91.823,0.25]
[1645966773459,0.25,91.895,91.823,0.25]
[1645966774061,0.25,91.895,91.823,3.2959124]
[1645966774263,3.35071816,91.896,91.823,3.2959124]
[1645966776086,3.35071816,91.896,91.823,3.0459124]
[1645966776895,3.35071816,91.896,91.825,108.9]
[1645966777090,1.42246102,91.925,91.831,141.49959078]
[1645966777289,24.6926,91.926,91.833,108.9]
[1645966777493,24.6926,91.926,91.835,108.9]
[1645966777691,1.50888126,91.949,91.836,3.16216865]
[1645966777890,23.5138,91.948,91.839,3.05983736]
[1645966778090,23.5138,91.948,91.84,115.15]
[1645966778393,6.0,91.941,91.842,108.9]
[1645966778591,7.59075073,91.941,91.851,108.9]
[1645966778791,7.59075073,91.941,91.853,108.9]
[1645966778992,7.59075073,91.941,91.854,22.9068]
[1645966779194,7.59075073,91.941,91.855,108.9]
[1645966779396,7.59075073,91.941,91.854,22.9068]
[1645966780594,28.36024566,91.94,91.854,22.9068]
[1645966780796,1.68321117,91.939,91.854,22.9068]
[1645966780996,4.352,91.938,91.854,22.9068]
[1645966781496,1.4632481,91.936,91.854,22.9068]
[1645966782896,6.0,91.935,91.854,22.9068]
[1645966785599,1.5478051,91.928,91.81,16.3378]
[1645966785799,4.353,91.927,91.822,24.3745]
[1645966785998,31.10803487,91.927,91.822,24.3745]
[1645966786199,25.5270119,91.926,91.822,24.3745]
[1645966786400,23.6814,91.925,91.822,24.3745]
[1645966786602,1.4628868,91.924,91.824,108.9]
[1645966787000,1.4628868,91.924,91.826,108.9]
[1645966787203,1.4628868,91.924,91.825,6.0]
[1645966787204,1.4628868,91.924,91.828,108.9]
[1645966787402,1.4628868,91.924,91.83,108.9]
[1645966787605,1.4628868,91.924,91.831,6.25]
[1645966787801,1.4628868,91.924,91.831,0.25]
[1645966788202,1.4628868,91.924,91.832,2.74678921]
[1645966788405,1.4628868,91.924,91.833,0.25]
[1645966788604,1.4628868,91.924,91.83,16.3344]
[1645966788803,1.4628868,91.924,91.823,45.26587536]
[1645966789005,1.4628868,91.924,91.824,0.25]
[1645966789404,6.0,91.923,91.824,0.25]
[1645966790507,16.3369,91.92,91.824,0.25]
[1645966790709,1.36784851,91.919,91.824,0.25]
[1645966790907,1.36784851,91.919,91.824,2.99678921]
[1645966791208,16.3369,91.92,91.824,111.89678921]
[1645966791407,1.71907987,91.919,91.826,108.9]
[1645966791606,1.71907987,91.919,91.827,6.25]
[1645966791807,1.71907987,91.919,91.829,108.9]
[1645966792008,1.71907987,91.919,91.83,114.9]
[1645966792208,1.71907987,91.919,91.827,2.99678921]
[1645966792709,108.9,91.909,91.828,2.74678921]
[1645966793009,1.78310572,91.906,91.786,22.7658]
[1645966793309,4.355,91.905,91.786,22.7658]
[1645966793510,108.9,91.904,91.786,22.7658]
[1645966793810,1.75371521,91.901,91.786,22.7658]
[1645966794010,4.355,91.9,91.786,22.7658]
[1645966794212,108.9,91.899,91.786,22.7658]
[1645966794412,108.9,91.897,91.786,22.7658]
[1645966794615,110.51537266,91.879,91.786,22.7658]
[1645966794813,108.9,91.877,91.786,22.7658]
[1645966795015,5.85488143,91.876,91.786,22.7658]
[1645966795413,1.49988143,91.876,91.786,22.7658]
[1645966795612,1.49988143,91.876,91.787,0.25]
[1645966796013,1.49988143,91.876,91.786,22.7658]
[1645966796215,2.74678921,91.875,91.786,22.7658]
[1645966796515,16.3447,91.87,91.786,22.7658]
[1645966796712,5.8723957,91.869,91.786,22.7658]
[1645966796913,34.99400846,91.869,91.786,22.7658]
[1645966797112,108.9,91.868,91.786,22.7658]
[1645966797313,1.59891226,91.866,91.786,22.7658]
[1645966797514,1.44319184,91.863,91.786,22.7658]
[1645966797715,4.356,91.862,91.786,22.7658]
[1645966798215,26.37482355,91.861,91.786,22.7658]
[1645966798413,4.356,91.86,91.786,22.7658]
[1645966798713,1.41659524,91.859,91.786,22.7658]
[1645966798913,6.0,91.858,91.786,22.7658]
[1645966799421,2.74678921,91.857,91.786,22.7658]
[1645966800619,1.43796531,91.849,91.786,22.7658]
[1645966801017,4.356,91.848,91.786,22.7658]
[1645966801218,4.356,91.848,91.771,24.653]
[1645966801416,1.63799207,91.846,91.771,24.653]
[1645966801619,4.356,91.845,91.771,24.653]
[1645966802236,4.356,91.845,91.771,59.49775973]
[1645966802536,16.3511,91.84,91.771,59.49775973]
[1645966802738,22.9562,91.847,91.772,23.4832]
[1645966802938,22.9562,91.847,91.773,0.25]
[1645966803137,22.9562,91.847,91.772,31.7032]
[1645966803337,22.9562,91.847,91.773,108.9]
[1645966803541,22.9562,91.847,91.773,111.41024409]
[1645966803738,6.0,91.846,91.773,111.41024409]
[1645966805342,6.0,91.846,91.774,2.40482674]
[1645966805540,1.8614395,91.9,91.791,108.9]
[1645966805840,4.356,91.908,91.793,108.9]
[1645966806041,24.3706,91.9,91.795,108.9]
[1645966806241,24.3706,91.9,91.797,108.9]
[1645966806440,24.3706,91.9,91.799,108.9]
[1645966806640,24.3706,91.9,91.798,6.25]
[1645966806641,24.3706,91.9,91.801,108.9]
[1645966806841,6.0,91.899,91.804,3.11464099]
[1645966807044,6.0,91.899,91.808,108.9]
[1645966807342,6.0,91.899,91.811,3.02040932]
[1645966807547,6.0,91.899,91.823,108.9]
[1645966807744,6.0,91.899,91.824,24.2974]
[1645966808145,7.72328379,91.899,91.824,24.2974]
[1645966808344,7.10078921,91.898,91.812,4.354]
[1645966808546,8.5971967,91.898,91.812,4.354]
[1645966808746,2.74678921,91.897,91.805,108.9]
[1645966809148,24.20815689,91.896,91.807,108.9]
[1645966809549,16.3419,91.89,91.807,108.9]
[1645966809754,23.7742,91.889,91.807,108.9]
[1645966810050,26.52098921,91.889,91.807,108.9]
[1645966810252,2.74678921,91.888,91.807,108.9]
[1645966810455,23.7742,91.889,91.807,108.9]
[1645966810851,23.7742,91.889,91.804,24.3111]
[1645966810852,16.3434,91.88,91.804,24.3111]
[1645966811052,1.38151968,91.879,91.804,24.3111]
[1645966811255,1.82533708,91.877,91.804,24.3111]
[1645966811457,22.8692,91.878,91.804,24.3111]
[1645966811656,25.61598921,91.878,91.804,24.3111]
[1645966811856,16.345,91.87,91.804,24.3111]
[1645966812256,2.74678921,91.869,91.804,24.3111]
[1645966812557,6.0,91.868,91.804,24.3111]
[1645966812960,6.0,91.868,91.805,42.75380525]
[1645966814361,16.345,91.87,91.805,42.75380525]
[1645966814362,6.0,91.867,91.805,42.75380525]
[1645966814559,16.345,91.87,91.805,42.75380525]
[1645966814759,6.0,91.869,91.805,42.75380525]
[1645966816461,16.345,91.87,91.805,42.75380525]
[1645966816862,1.61981866,91.887,91.805,42.75380525]
[1645966817061,26.99078921,91.889,91.806,108.9]
[1645966817464,26.99078921,91.889,91.805,42.75380525]
[1645966817763,31.34578921,91.889,91.805,42.75380525]
[1645966818261,26.99078921,91.889,91.805,42.75380525]
[1645966818461,16.3428,91.88,91.805,42.75380525]
[1645966818661,16.3428,91.88,91.806,108.9]
[1645966818862,16.3428,91.88,91.805,42.75380525]
[1645966819664,16.3428,91.88,91.806,108.9]
[1645966820466,6.0,91.877,91.806,108.9]
[1645966820669,6.0,91.877,91.807,0.25]
[1645966820869,6.0,91.876,91.807,2.55630265]
[1645966821067,24.244,91.889,91.807,2.55630265]
[1645966821367,6.0,91.888,91.807,2.55630265]
[1645966821568,24.6209,91.899,91.812,2.87362029]
[1645966821768,6.0,91.898,91.813,0.25]
[1645966823368,6.0,91.898,91.812,2.87362029]
[1645966823571,16.3414,91.89,91.782,3.01608942]
[1645966823769,1.37479025,91.889,91.782,3.01608942]
[1645966823971,26.9549461,91.889,91.782,3.01608942]
[1645966824171,8.56197542,91.888,91.782,3.01608942]
[1645966824371,1.55059857,91.887,91.805,44.75922153]
[1645966824571,4.29738778,91.887,91.805,44.75922153]
[1645966824770,7.10178921,91.886,91.805,44.75922153]
[1645966824971,2.74678921,91.886,91.805,44.75922153]